Cogmind - Beta 16.1 @@@ ROGUE MODE // 2026.03.18 @ 13:47:16 Player: ash Result: Destroyed by X-87 Electro with Compact HERF Cannon Performance ------------- Evolutions (9) 4500 Regions Visited (13) 2600 Robots Destroyed (87) 435 Value Destroyed (3754) 3754 Prototype IDs (20) 400 Alien Tech Used (1) 200 Bonus (2288) 2288 TOTAL SCORE: 14177 Bonus ------- Registered with UFD 300 Met Sigix 2000 Friendly Fire -12 Cogmind --------- Core Integrity 0/1600 Matter 227/300 Energy 98/100 System Corruption 10% Temperature Cool (0) Movement Core (50) Location -1/Access Parts ------- > --- POWER (2) -------- (None) > --- PROPULSION (8) --- (None) > --- UTILITY (12) ----- Advanced Signal Interpreter > --- WEAPON (3) ------- (None) > --- INVENTORY (5) ---- Light Antimatter Reactor Terrabomb Improved Plasma Cutter Sigix Containment Pod Peak State ------------ > --- POWER ------------ Micro Antimatter Reactor Compact Particle Reactor > --- PROPULSION ------- Q-thruster Improved Diametric Drive Impulse Thruster Array Impulse Thruster Array Improved Q-thruster Improved Q-thruster > --- UTILITY ---------- Medium Storage Unit Advanced Energy Well Advanced Sensor Array Advanced Signal Interpreter Stasis Canceller Experimental Transmission Jammer Reaction Control System Layered Medium Armor Plating Layered Medium Armor Plating Advanced Force Field Hacking Suite Improved System Shield > --- WEAPON ----------- Kinetic Spear > --- INVENTORY -------- Compact Matter Pod Terrabomb Enhanced Hardcell Cannon Fusion Bomb Launcher Improved Plasma Cutter Sigix Containment Pod [Rating: 162] Favorites ----------- Power Light Ion Engine Engine Light Ion Engine Power Core Neutrino Core Reactor Compact Particle Reactor Propulsion Improved Q-thruster Leg Aluminum Leg Hover Unit Antigrav System Flight Unit Improved Q-thruster Utility Seismic Detector Device Seismic Detector Storage Large Storage Unit Processor Advanced Signal Interpreter Hackware Hacking Suite Protection Layered Medium Armor Plating Weapon Medium Laser Energy Gun Medium Laser Energy Cannon Heavy Phase Cannon Ballistic Gun Light Assault Rifle Ballistic Cannon Enhanced Hardcell Cannon Launcher Rocket Launcher Special Weapon Improved Remote Datajack Slashing Weapon Greatsword Piercing Weapon Kinetic Spear Special Melee Weapon Advanced Datajack Build | -11 -10 -10 -9 -6 -5 -5 -5 -4 -3 -3 -3 -2 -1 ------- Run | Yrd Mat Sub Scr Fac Fac Upp Upp Fac Res Qua Frg Res Acc Slots Evolved 18 | . . . . 8 2 . . 2 2 . . 2 2 Power 1 | . . . . 1 . . . . . . . . . Propulsion 6 | . . . . 2 . . . 2 1 . . 1 . Utility 10 | . . . . 4 2 . . . 1 . . 1 2 Weapon 1 | . . . . 1 . . . . . . . . . Parts Attached 116 | 1 . . 3 15 54 2 1 9 14 2 1 1 13 Power 16 | . . . . 2 8 1 . 2 1 . . . 2 Engine 6 | . . . . 2 4 . . . . . . . . Core 5 | . . . . . 4 1 . . . . . . . Reactor 5 | . . . . . . . . 2 1 . . . 2 Propulsion 27 | . . . 2 3 11 . . 2 3 1 1 . 4 Treads . | . . . . . . . . . . . . . . Leg 9 | . . . 2 3 4 . . . . . . . . Wheel . | . . . . . . . . . . . . . . Hover 2 | . . . . . 2 . . . . . . . . Flight 16 | . . . . . 5 . . 2 3 1 1 . 4 Utility 54 | 1 . . 1 6 26 1 . 4 8 1 . 1 5 Device 25 | 1 . . . 3 10 1 . 1 5 1 . 1 2 Storage 6 | . . . 1 . 4 . . . 1 . . . . Processor 13 | . . . . 1 8 . . 1 2 . . . 1 Hackware 4 | . . . . . 2 . . 2 . . . . . Protection 6 | . . . . 2 2 . . . . . . . 2 Artifact . | . . . . . . . . . . . . . . Weapon 19 | . . . . 4 9 . 1 1 2 . . . 2 Energy Gun . | . . . . . . . . . . . . . . Energy Cannon 1 | . . . . . 1 . . . . . . . . Ballistic Gun 8 | . . . . 3 5 . . . . . . . . Ballistic Cannon 1 | . . . . . . . . . . . . . 1 Launcher 2 | . . . . 1 . . . . 1 . . . . Special Weapon 2 | . . . . . 1 . . . . . . . 1 Impact Weapon . | . . . . . . . . . . . . . . Slashing Weapon 2 | . . . . . 1 . . . 1 . . . . Piercing Weapon 1 | . . . . . 1 . . . . . . . . Special Melee Weapon 2 | . . . . . . . 1 1 . . . . . Unidentified Prototypes 13 | . . . . . 9 . . 1 1 1 . 1 . Parts Lost 65 | . . . . 2 25 . 1 4 8 1 2 1 21 Power 7 | . . . . . 4 . . . 1 . . . 2 Propulsion 23 | . . . . . 8 . . 1 3 . 1 . 10 Utility 24 | . . . . 1 9 . . 2 3 . 1 1 7 Weapon 11 | . . . . 1 4 . 1 1 1 1 . . 2 Highest Loss Streak 15 | . . . . 1 11 . 1 3 6 1 1 1 15 To Critical Strikes 1 | . . . . . 1 . . . . . . . . Average Backups 8 | 6 6 8 9 8 10 3 3 3 3 6 6 4 6 Power 1 | 1 1 2 1 . 1 . . . . . . . . Propulsion 1 | 4 4 5 2 1 . . . . . 1 1 . . Utility 3 | . . . 3 4 4 2 2 2 1 2 1 1 2 Weapon 2 | 1 1 1 2 2 3 . 1 1 . . . 1 1 Tool/Special . | . . . . . . . . . . . . . . Unused Backups 34 | . 8 . 14 1 6 . . . 1 1 . . 3 Power 6 | . 1 . 2 . 2 . . . . 1 . . . Propulsion 10 | . 4 . 6 . . . . . . . . . . Utility 8 | . 1 . 3 . 2 . . . 1 . . . 1 Weapon 8 | . 2 . 3 1 2 . . . . . . . . Tool/Special 2 | . . . . . . . . . . . . . 2 Average Slot Usage (%) 90 | . 100 100 100 91 85 86 96 79 85 84 83 77 59 Engine 8 | . 14 14 14 12 4 5 5 3 . . . . . Core 1 | . . . . . 5 1 5 1 . . . . . Reactor 1 | . . . . . . . . 5 7 9 8 8 5 Leg 17 | . 28 28 28 25 14 . . . . . . . . Flight 7 | . . . . . 4 23 23 21 26 26 26 26 17 Device 14 | . 14 14 14 13 13 19 23 13 16 18 18 16 12 Storage 9 | . 14 14 14 6 4 5 5 3 4 9 9 8 7 Processor 4 | . . . . 5 15 5 5 5 3 4 4 4 4 Hackware 3 | . . . . . . 11 11 15 14 9 9 8 7 Protection 1 | . . . . 5 2 . . . . . . . 1 Energy Gun 6 | . 14 14 14 4 . . . . . . . . . Ballistic Gun 9 | . 14 14 14 13 13 . . . . . . . . Piercing Weapon 1 | . . . . . . 5 5 4 4 4 4 4 3 Peak Build Rating 162 | 7 8 8 18 63 108 102 107 115 151 140 147 147 162 Average Rating 59 | 6 7 8 11 56 70 96 103 102 133 138 140 146 116 On Entrance 76 | 6 7 8 8 18 62 94 101 101 105 140 140 137 146 Avg Prop Armor Cover (%) 2 | . . . . . 2 2 . . 1 . . . . Naked Turns 2 | . . . . . 2 . . . . . . . . Heaviest Build 79 | 12 12 12 27 62 79 29 30 32 43 53 53 53 69 Greatest Support 85 | 20 20 20 37 85 85 32 32 40 57 58 61 70 70 Greatest Overweight (x) 4 | . . . . . 3 . . . . . . . 4 Average Overweight (x) . | . . . . . . . . . . . . . . Largest Inventory Capacity 15 | 8 8 8 15 15 15 5 5 5 10 10 10 10 10 Average Capacity 11 | 8 8 8 12 15 12 5 5 5 5 10 10 10 9 Most Carried 15 | 6 8 8 15 15 15 5 5 5 6 10 10 7 10 Average Carried 9 | 6 6 8 10 9 11 4 4 4 4 8 9 6 8 Final Capacity 15 | 8 8 8 15 15 5 5 5 5 10 10 10 10 5 Final Carried 15 | 6 8 8 15 14 5 5 4 5 6 10 8 6 5 Scrap Suit Usage (%) 21 | . . . . 100 64 . . . . . . . . Parts Cannibalized 15 | . . . . 6 9 . . . . . . . . Class Distribution -------------------- 42% | Mutant 25% | Hacker-Sprinter 16% | Scrapper 4% | Hacker-Ninja Dominant Class ---------------- Mutant | -10/Materials Mutant | -10/Subcaves Mutant | -9/Scraptown Scrapper | -6/Factory Scrapper | -5/Factory Hacker-Ninja | -5/Upper Caves Hacker-Ninja | -5/Upper Caves Hacker-Sprinter | -4/Factory Hacker-Sprinter | -3/Research Hacker-Sprinter | -3/Quarantine Hacker-Sprinter | -3/Protoforge Hacker-Sprinter | -2/Research Hacker-Sprinter | -1/Access Resources | -11 -10 -10 -9 -6 -5 -5 -5 -4 -3 -3 -3 -2 -1 ----------- Run | Yrd Mat Sub Scr Fac Fac Upp Upp Fac Res Qua Frg Res Acc Matter Collected 3045 | 200 16 . 20 469 1615 86 40 149 271 38 62 . 79 Remotely . | . . . . . . . . . . . . . . Salvage Created 3497 | 21 . . . 474 1669 47 . 189 397 130 213 . 357 Parts 212 | 4 . . . 28 93 9 . 11 17 10 14 . 26 Haulers Intercepted 6 | . . . . . 4 . . 1 1 . . . . Recyclers Shooed 9 | 1 1 . . 3 4 . . . . . . . . Parts Field Recycled . | . . . . . . . . . . . . . . Retrieved Matter . | . . . . . . . . . . . . . . Parts Self-Destructed 11 | . . 8 . . . 3 . . . . . . . Prevented . | . . . . . . . . . . . . . . Parts Restored . | . . . . . . . . . . . . . . Kills | -11 -10 -10 -9 -6 -5 -5 -5 -4 -3 -3 -3 -2 -1 ------- Run | Yrd Mat Sub Scr Fac Fac Upp Upp Fac Res Qua Frg Res Acc Combat Hostiles Destroyed 65 | . . . . 11 25 5 . 3 4 6 4 . 7 Melee 9 | . . . . . . . . . 2 . . . 7 Guns 29 | . . . . 7 22 . . . . . . . . AOE 27 | . . . . 4 3 5 . 3 2 6 4 . . Classes Destroyed 13 | 1 . . . 6 4 . . 1 1 . . . . Worker 3 | . . . . 1 1 . . . . . 1 . . Builder 2 | . . . . . 2 . . . . . . . . Tunneler 1 | 1 . . . . . . . . . . . . . Hauler 6 | . . . . . 4 . . 1 1 . . . . Recycler 1 | . . . . 1 . . . . . . . . . Operator 1 | . . . . . . . . . 1 . . . . Watcher 8 | . . . . . . . . 1 3 . 4 . . Swarmer 38 | . . . . 7 7 5 . 3 3 5 4 . 4 Grunt 4 | . . . . . 3 . . . . . . . 1 Sentry 3 | . . . . 2 1 . . . . . . . . Specialist 1 | . . . . . 1 . . . . . . . . Hunter 7 | . . . . 1 6 . . . . . . . . Programmer 12 | . . . . 1 7 . . . 1 1 . . 2 Best Kill Streak 7 | 1 . . . 4 7 5 . 3 3 6 5 . 4 Combat Bots Only 6 | . . . . 4 5 5 . 3 3 6 4 . 4 Max Kills in Single Turn 4 | 1 . . . 3 3 2 . 2 1 3 4 . 1 Gunslinging . | . . . . . . . . . . . . . . Exploded 3 | . . . . 2 2 2 . 2 1 3 3 . . Melee 1 | . . . . . . . . . 1 . . . 1 Uniques/NPCs Destroyed . | . . . . . . . . . . . . . . Combat | -11 -10 -10 -9 -6 -5 -5 -5 -4 -3 -3 -3 -2 -1 -------- Run | Yrd Mat Sub Scr Fac Fac Upp Upp Fac Res Qua Frg Res Acc Hostile Shots Fired 819 | . 1 . . 82 298 4 6 43 42 21 43 12 267 Missed 297 | . . . . 29 63 2 3 17 20 11 18 7 127 Hits 522 | . 1 . . 53 235 2 3 26 22 10 25 5 140 Projectile 522 | . 1 . . 53 235 2 3 26 22 10 25 5 140 AOE 5 | . . . . . . . . 5 . . . . . Critical Strikes 17 | . . . . 1 6 . . 1 3 . . . 6 Part Disruptions 2 | . . . . . 2 . . . . . . . . Damage Taken 9363 | . 15 . . 674 3768 27 74 649 592 198 285 53 3028 Core 2651 | . . . . 36 382 . 23 329 98 57 103 10 1613 Absorbed by Shields 571 | . . . . . 221 . . . . . 294 56 . Regen/Repaired (Parts) 281 | . . . . 109 87 . . . 85 . . . . Core Remaining (%) 86 | 100 . . 100 95 . . 59 71 . . 80 99 . Volleys Fired 150 | 2 4 . . 40 89 3 . 3 3 2 3 . 1 Largest 3 | 2 2 . . 3 3 1 . 1 1 1 1 . 1 Hottest 148 | 70 70 . . 120 148 33 . 33 33 52 52 . 10 Shots Fired 348 | 4 8 . . 68 253 3 . 3 3 2 3 . 1 Gun 319 | 4 8 . . 61 246 . . . . . . . . Cannon 4 | . . . . . 4 . . . . . . . . Launcher 23 | . . . . 7 2 3 . 3 3 2 3 . . Special 2 | . . . . . 1 . . . . . . . 1 Kinetic 310 | 2 4 . . 58 246 . . . . . . . . Thermal 13 | 2 4 . . 3 4 . . . . . . . . Explosive 23 | . . . . 7 2 3 . 3 3 2 3 . . Electromagnetic . | . . . . . . . . . . . . . . Robot Hit Streak 22 | 3 4 . . 9 22 . . 8 . . 1 . 2 Robot Miss Streak 6 | . 1 . . 4 3 . . 2 4 . 6 . . Penetration Max 1 | . . . . . 1 . . . . . . . . Secondary Targets 3 | . . . . . 3 . . . . . . . . Max Gunslinging Chain 1 | . . . . . 1 . . . . . . . . Shots Hit Robots 269 | 3 6 . . 44 171 . 1 6 15 1 6 . 16 Core Hits 161 | 2 5 . . 22 75 8 . 6 11 13 9 . 10 Critical Kills 3 | . . . . 1 2 . . . . . . . . Critical Parts Destroyed 3 | . . . . . 3 . . . . . . . . Critical Strikes 10 | . 1 . . 1 5 . . . 1 . 1 . 1 Burn 1 | . 1 . . . . . . . . . . . . Destroy 6 | . . . . 1 5 . . . . . . . . Sever 1 | . . . . . . . . . 1 . . . . Impale 2 | . . . . . . . . . . . 1 . 1 Melee Attacks 144 | . . . . . 9 . 1 23 39 13 18 3 38 Thermal 4 | . . . . . 4 . . . . . . . . Impact . | . . . . . . . . . . . . . . Slashing 22 | . . . . . . . . . 19 3 . . . Piercing 117 | . . . . . 5 . 1 22 20 10 18 3 38 Sneak Attacks 7 | . . . . . 2 . . 2 2 . 1 . . Combat Hostiles . | . . . . . . . . . . . . . . Follow-up Attacks 5 | . . . . . . . . . 5 . . . . Damage Inflicted 10390 | 32 77 . . 1525 4534 271 2 579 1079 820 892 . 579 Guns 4854 | 32 76 . . 1058 3688 . . . . . . . . Cannons 146 | . . . . . 146 . . . . . . . . Explosions 2833 | . . . . 450 459 271 . 291 132 749 481 . . Melee 2480 | . . . . . 184 . 2 288 947 71 411 . 577 Ramming 77 | . 1 . . 17 57 . . . . . . . 2 Kinetic 4766 | 7 26 . . 1045 3688 . . . . . . . . Thermal 562 | 25 50 . . 13 474 . . . . . . . . Explosive 2505 | . . . . 450 131 271 . 291 132 749 481 . . Electromagnetic . | . . . . . . . . . . . . . . Impact . | . . . . . . . . . . . . . . Slashing 493 | . . . . . . . . . 493 . . . . Piercing 1987 | . . . . . 184 . 2 288 454 71 411 . 577 Highest Corruption 11 | . . . . 1 11 . . . 3 3 3 . 9 Average Corruption 3 | . . . . 1 4 . . . 2 3 3 . 3 Corruption Purged 11 | . . . . . 11 . . . . . . . . Corruption Blocked . | . . . . . . . . . . . . . . Effects 17 | . . . . . 6 . . . 3 1 5 . 2 Message Errors 2 | . . . . . . . . . . . 1 . 1 Matter Fused 2 | . . . . . 1 . . . . . 1 . . Heat Flow Errors 5 | . . . . . 2 . . . 1 . 2 . . Energy Discharges 3 | . . . . . 2 . . . . . 1 . . Data Loss (minor) 1 | . . . . . 1 . . . . . . . . Data Loss (major) 3 | . . . . . . . . . 1 1 . . 1 Alerts 1 | . . . . . . . . . 1 . . . . Overload Shots . | . . . . . . . . . . . . . . Overflow Damage 314 | . . . . 7 33 5 . . 99 3 167 . . Projectiles . | . . . . . . . . . . . . . . Explosions 143 | . . . . 7 33 5 . . 19 2 77 . . Melee 171 | . . . . . . . . . 80 1 90 . . Knockbacks 1 | . . . . . 1 . . . . . . . . Impact 1 | . . . . . 1 . . . . . . . . Kinetic . | . . . . . . . . . . . . . . Secondary . | . . . . . . . . . . . . . . Self-Inflicted Damage 274 | . . . . 49 129 . . . 95 . . . 1 Shots 6 | . . . . 1 2 . . . 3 . . . . Rammed 2 | . . . . . . . . . . . . . 2 Targets Rammed 13 | . 1 . . 4 6 . . . . . . . 2 Kicked 11 | . 1 . . 4 6 . . . . . . . . Crushed . | . . . . . . . . . . . . . . Highest Temperature 348 | 40 59 . . 216 348 7 3 184 225 . 191 192 265 Average Temperature 95 | 20 27 . . 75 100 7 2 78 99 . 86 80 107 Received Heat Transfer 322 | . 9 . . 42 39 . 18 9 9 30 32 8 126 Effects 7 | . . . . 2 1 . . . . . . . 4 Shutdowns 1 | . . . . . 1 . . . . . . . . Energy Bleed 1 | . . . . . . . . . . . . . 1 Interference 5 | . . . . 2 . . . . . . . . 3 Siege Activations . | . . . . . . . . . . . . . . Martial Activations . | . . . . . . . . . . . . . . Shielding Activations . | . . . . . . . . . . . . . . Robots Disrupted . | . . . . . . . . . . . . . . Combat Hostiles . | . . . . . . . . . . . . . . Robots Corrupted . | . . . . . . . . . . . . . . Combat Hostiles . | . . . . . . . . . . . . . . Parts Fried . | . . . . . . . . . . . . . . Impact Corruptions . | . . . . . . . . . . . . . . Robots Melted . | . . . . . . . . . . . . . . Combat Hostiles . | . . . . . . . . . . . . . . Parts Melted 1 | . . . . . . . . . 1 . . . . Heat Transferred 656 | 74 222 . . 37 323 . . . . . . . . Parts Sabotaged . | . . . . . . . . . . . . . . Parts Stolen . | . . . . . . . . . . . . . . Parts Stripped . | . . . . . . . . . . . . . . Power Chain Reactions . | . . . . . . . . . . . . . . Alert | -11 -10 -10 -9 -6 -5 -5 -5 -4 -3 -3 -3 -2 -1 ------- Run | Yrd Mat Sub Scr Fac Fac Upp Upp Fac Res Qua Frg Res Acc Maximum Alert Level 2 | . . . . . 1 . . . . 1 2 . 1 Low Security (%) 72 | 100 100 . . 100 44 . . 100 100 33 18 100 82 Level 1 25 | . . . . . 55 . . . . 66 57 . 17 Level 2 1 | . . . . . . . . . . . 23 . . Level 3 . | . . . . . . . . . . . . . . Level 4 . | . . . . . . . . . . . . . . Level 5 . | . . . . . . . . . . . . . . High Security . | . . . . . . . . . . . . . . Max Security . | . . . . . . . . . . . . . . Peak Influence 412 | 5 5 . . 157 333 . . 161 130 259 412 198 381 Initial 195 | . . . . . 67 . . 25 71 49 128 195 104 Average 140 | 3 . . . 71 194 . . 40 94 173 331 189 153 Influence Increases 3524 | 5 5 30 . 383 939 110 . 264 457 290 380 9 652 Destroy 0b10 Robot/C 1300 | . . . . 220 500 100 . 60 80 120 80 . 140 Destroy 0b10 Robot/NC 110 | 5 . . . 10 35 . . 10 25 . 25 . . Destroy Leader 268 | . . . . 60 98 10 . 14 28 20 18 . 20 Successful Hack 185 | . 5 . . . 45 . . 8 61 6 39 . 21 Disable Machine 255 | . . . . 30 120 . . 15 30 15 30 . 15 Destroy Structure 401 | . . . . 48 66 . . 52 68 54 68 9 36 Partial Spotted 210 | . . . . . . . . 15 75 . 75 . 45 Lose Combat Pursuer 795 | . . 30 . 15 75 . . 90 90 75 45 . 375 Influence Decreases 3184 | 5 5 30 . 245 981 106 59 169 505 149 261 183 486 Entered New Map 570 | . . . . . 71 36 19 16 65 39 101 153 70 Time Decay 1804 | 5 5 30 . 225 510 70 30 113 350 100 140 20 206 Lost Part 650 | . . . . 20 250 . 10 40 80 10 20 10 210 Lost Ally 10 | . . . . . . . . . 10 . . . . Purge Threat 150 | . . . . . 150 . . . . . . . . Squads Dispatched 25 | . . . . 2 4 . . 1 10 3 . . 5 Investigation 5 | . . . . . 1 . . 1 2 . . . 1 Extermination 12 | . . . . 1 2 . . . 4 2 . . 3 Reinforcement 8 | . . . . 1 1 . . . 4 1 . . 1 Assault . | . . . . . . . . . . . . . . Garrison . | . . . . . . . . . . . . . . Intercept . | . . . . . . . . . . . . . . Searches Triggered . | . . . . . . . . . . . . . . Construction Impeded . | . . . . . . . . . . . . . . Haulers Reinforced 1 | . . . . . . . . . 1 . . . . Active Scanning Responses . | . . . . . . . . . . . . . . Cargo Convoy Interrupts 1 | . . . . . 1 . . . . . . . . Stealth | -11 -10 -10 -9 -6 -5 -5 -5 -4 -3 -3 -3 -2 -1 --------- Run | Yrd Mat Sub Scr Fac Fac Upp Upp Fac Res Qua Frg Res Acc Distress Signals 8 | . . . . 1 1 . . 1 . 1 1 . 3 Communications Jammed 31 | . . . . . . . . 1 5 3 11 . 11 Distress Signals 30 | . . . . . . . . . 5 3 11 . 11 Times Spotted 192 | . 4 3 . 14 47 4 1 13 28 12 16 3 47 Peak Tracking Total 25 | . 2 4 . 4 7 4 1 6 6 8 6 3 25 Tactical Retreats 30 | . . 1 . 1 2 1 . 5 6 2 3 . 9 ECM-based Alert Blocks 3 | . . . . . . 1 . 2 . . . . . Traps | -11 -10 -10 -9 -6 -5 -5 -5 -4 -3 -3 -3 -2 -1 ------- Run | Yrd Mat Sub Scr Fac Fac Upp Upp Fac Res Qua Frg Res Acc Traps Triggered 8 | . . . . . 3 . . 1 . . 3 . 1 Indirectly . | . . . . . . . . . . . . . . Trap Hack Attempts . | . . . . . . . . . . . . . . Triggered . | . . . . . . . . . . . . . . Disarmed . | . . . . . . . . . . . . . . Reprogrammed . | . . . . . . . . . . . . . . Reused . | . . . . . . . . . . . . . . Traps Extracted . | . . . . . . . . . . . . . . Installed . | . . . . . . . . . . . . . . Triggered . | . . . . . . . . . . . . . . Most Traps Carried 2 | . . . 2 1 1 . . . . . . . . Machines | -11 -10 -10 -9 -6 -5 -5 -5 -4 -3 -3 -3 -2 -1 ---------- Run | Yrd Mat Sub Scr Fac Fac Upp Upp Fac Res Qua Frg Res Acc Machines Disabled 17 | . . . . 2 8 . . 1 2 1 2 . 1 Max in Single Turn 4 | . . . . 1 4 . . 1 1 1 2 . 1 Garrison Access 1 | . . . . . . . . . 1 . . . . Machines Repaired . | . . . . . . . . . . . . . . Machines Dismantled . | . . . . . . . . . . . . . . Machines Sabotaged . | . . . . . . . . . . . . . . Overloaded Fab Kills . | . . . . . . . . . . . . . . Hacking | -11 -10 -10 -9 -6 -5 -5 -5 -4 -3 -3 -3 -2 -1 --------- Run | Yrd Mat Sub Scr Fac Fac Upp Upp Fac Res Qua Frg Res Acc Machines Accessed 67 | . 1 . 7 3 15 . . 3 18 6 7 1 6 Terminals 41 | . 1 . . 1 6 . . 2 13 5 7 1 5 Fabricators 3 | . . . . . 2 . . . 1 . . . . Repair Stations 3 | . . . . 1 1 . . . 1 . . . . Recycling Units 7 | . . . . 1 4 . . 1 1 . . . . Scanalyzers 5 | . . . . . 2 . . . 1 1 . . 1 Garrison Access 1 | . . . . . . . . . 1 . . . . Total Hacks 193 | . 4 . 30 7 36 . . 7 52 6 35 3 13 Successful 109 | . 3 . 30 5 21 . . 5 25 3 14 . 3 Failed 82 | . 1 . . 2 14 . . 2 26 3 21 3 10 Catastrophic 18 | . . . . 1 6 . . . 3 2 5 . 1 Database Lockouts 2 | . . . . . 1 . . . 1 . . . . Manual 62 | . 1 . . 2 8 . . 2 22 2 25 . . Terminals 124 | . 4 . . 3 19 . . 4 41 5 35 3 10 Fabricators 3 | . . . . . 2 . . . 1 . . . . Repair Stations 8 | . . . . 3 3 . . . 2 . . . . Recycling Units 15 | . . . . 1 9 . . 3 2 . . . . Scanalyzers 10 | . . . . . 3 . . . 3 1 . . 3 Garrison Access 3 | . . . . . . . . . 3 . . . . Terminal Hacks 64 | . 2 . 30 2 8 . . 1 10 2 7 . 2 Record 24 | . . . 21 . . . . . . 1 2 . . Robot Analysis 8 | . . . 8 . . . . . . . . . . Prototype ID Bank 1 | . 1 . . . . . . . . . . . . Open Door 3 | . . . . . . . . . . 1 . . 2 Level Access Points 1 | . . . . . 1 . . . . . . . . Branch Access Points 3 | . . . . . 1 . . . 1 . 1 . . Emergency Access Points 6 | . . . . . 2 . . 1 2 . 1 . . Machine Index 1 | . . . . . . . . . 1 . . . . Terminal Index 1 | . . . . . 1 . . . . . . . . Alert Level 6 | . . . . 1 2 . . . 3 . . . . Unreport Threat 1 | . . . . . 1 . . . . . . . . Locate Traps 5 | . . . . 1 . . . . 3 . 1 . . Security Status 1 | . . . . . . . . . . . 1 . . Investigation Status 1 | . 1 . . . . . . . . . . . . Zone Layout 1 | . . . . . . . . . . . 1 . . Proto ID Catalog 1 | . . . 1 . . . . . . . . . . Fabricator Hacks 2 | . . . . . 1 . . . 1 . . . . Network Status 2 | . . . . . 1 . . . 1 . . . . Repair Station Hacks 5 | . . . . 2 1 . . . 2 . . . . Scan Component 2 | . . . . 1 . . . . 1 . . . . Repair 2 | . . . . 1 . . . . 1 . . . . Refit 1 | . . . . . 1 . . . . . . . . Recycling Unit Hacks 11 | . . . . . 8 . . 2 1 . . . . Process 1 | . . . . . 1 . . . . . . . . Report Inventory 6 | . . . . . 4 . . 1 1 . . . . Retrieve Matter 1 | . . . . . 1 . . . . . . . . Retrieve Components 3 | . . . . . 2 . . 1 . . . . . Scanalyzer 4 | . . . . . 1 . . . 1 1 . . 1 Retrieve Study 4 | . . . . . 1 . . . 1 1 . . 1 Garrison Access Hacks 1 | . . . . . . . . . 1 . . . . Seal Access 1 | . . . . . . . . . 1 . . . . Unauthorized Hacks 22 | . 1 . . 1 2 . . 2 9 . 7 . . Terminals 20 | . 1 . . 1 2 . . 1 8 . 7 . . Track 6 | . . . . . . . . . 3 . 3 . . Assimilate 1 | . . . . . . . . . 1 . . . . Botnet 13 | . 1 . . 1 2 . . 1 4 . 4 . . Fabricators . | . . . . . . . . . . . . . . Repair Stations . | . . . . . . . . . . . . . . Recycling Units 2 | . . . . . . . . 1 1 . . . . Fedlink 2 | . . . . . . . . 1 1 . . . . Scanalyzers . | . . . . . . . . . . . . . . Garrison Access . | . . . . . . . . . . . . . . Data Cores Recovered 1 | . . . . . . . . . 1 . . . . Used 1 | . . . . . . . . . 1 . . . . Hacking Detections 47 | . . . . 3 12 . . 2 14 3 7 1 5 Full Trace Events 3 | . . . . . 1 . . . 1 . . . 1 Feedback Events . | . . . . . . . . . . . . . . Feedback Blocked . | . . . . . . . . . . . . . . Robot Schematics Acquired . | . . . . . . . . . . . . . . Robots Built . | . . . . . . . . . . . . . . Authchips . | . . . . . . . . . . . . . . Time . | . . . . . . . . . . . . . . Total Robot Build Rating . | . . . . . . . . . . . . . . Part Schematics Acquired . | . . . . . . . . . . . . . . Parts Built . | . . . . . . . . . . . . . . Authchips . | . . . . . . . . . . . . . . Time . | . . . . . . . . . . . . . . Total Part Build Rating . | . . . . . . . . . . . . . . Part Studies Acquired 4 | . . . . . 1 . . . 1 1 . . 1 Parts Repaired 2 | . . . . 1 . . . . 1 . . . . Time 176 | . . . . 68 . . . . 108 . . . . Parts Recycled . | . . . . . . . . . . . . . . Recycled Matter 11 | . . . . . 11 . . . . . . . . Retrieved Matter 11 | . . . . . 11 . . . . . . . . Retrieved Components 13 | . . . . . 12 . . 1 . . . . . Parts Scanalyzed . | . . . . . . . . . . . . . . Part Schematics Acquired . | . . . . . . . . . . . . . . Parts Damaged . | . . . . . . . . . . . . . . Bothacking | -11 -10 -10 -9 -6 -5 -5 -5 -4 -3 -3 -3 -2 -1 ------------ Run | Yrd Mat Sub Scr Fac Fac Upp Upp Fac Res Qua Frg Res Acc Used RIF Installer . | . . . . . . . . . . . . . . Robots Hacked 2 | . . . . . 1 . . 1 . . . . . Non-combat 2 | . . . . . 1 . . 1 . . . . . Combat . | . . . . . . . . . . . . . . Robot Hacks Applied 2 | . . . . . 1 . . 1 . . . . . no_distress 1 | . . . . . 1 . . . . . . . . find_recycling 1 | . . . . . . . . 1 . . . . . Relay Couplers Released . | . . . . . . . . . . . . . . Fabnet Peak Effective % . | . . . . . . . . . . . . . . Robots Rewired . | . . . . . . . . . . . . . . Allies Hacked . | . . . . . . . . . . . . . . Hacks Repelled . | . . . . . . . . . . . . . . Allies | -11 -10 -10 -9 -6 -5 -5 -5 -4 -3 -3 -3 -2 -1 -------- Run | Yrd Mat Sub Scr Fac Fac Upp Upp Fac Res Qua Frg Res Acc Total Allies 1 | . . . . . . . . . 1 . . . . Largest Group 1 | . . . . . . . . . 1 . . . . Highest-Rated Group 26 | . . . . . . . . . 26 . . . . Highest-Rated Ally 26 | . . . . . . . . . 26 . . . . Initial UFD Resources 60 | . . . . 23 25 25 25 29 42 52 52 56 60 Total Orders . | . . . . . . . . . . . . . . Ally Attacks . | . . . . . . . . . . . . . . Total Damage . | . . . . . . . . . . . . . . Kills . | . . . . . . . . . . . . . . Allies Corrupted . | . . . . . . . . . . . . . . Allies Melted . | . . . . . . . . . . . . . . Intel | -11 -10 -10 -9 -6 -5 -5 -5 -4 -3 -3 -3 -2 -1 ------- Run | Yrd Mat Sub Scr Fac Fac Upp Upp Fac Res Qua Frg Res Acc Active Infowar (turns) 7559 | 8 174 116 2967 769 1348 147 71 274 794 216 281 52 342 Optics 1114 | . . . . . 1099 . . . 15 . . . . Sensors 2171 | . . . . 76 215 147 71 233 553 216 281 52 327 Terrain 8 | . . . . . . . . . 8 . . . . Traps 709 | . . . . 348 361 . . . . . . . . Seismic 3996 | 8 174 116 2967 345 386 . . . . . . . . T.N.C. 832 | . . . . . 832 . . . . . . . . Triangulation 1086 | . . . . . . . . . 615 216 255 . . Jamming 1813 | . . . . . 43 . 38 127 794 216 281 52 262 ECM 102 | . . . . . . 25 . 77 . . . . . Robot Analysis Total 8 | . . . 8 . . . . . . . . . . Derelict Logs Recovered 1 | . . . . . . 1 . . . . . . . Drone Launches . | . . . . . . . . . . . . . . Drone Recoveries . | . . . . . . . . . . . . . . Exploration | -11 -10 -10 -9 -6 -5 -5 -5 -4 -3 -3 -3 -2 -1 ------------- Run | Yrd Mat Sub Scr Fac Fac Upp Upp Fac Res Qua Frg Res Acc Turns Passed 7686 | 20 174 116 2967 771 1381 147 71 274 794 216 281 52 422 Spaces Moved 9090 | 11 124 89 2357 502 973 471 159 586 1832 494 519 142 831 Core 13 | . . . . . 6 . . . . . . . 7 Treads . | . . . . . . . . . . . . . . Legs 3613 | 11 124 89 2357 502 530 . . . . . . . . Wheels . | . . . . . . . . . . . . . . Hover . | . . . . . . . . . . . . . . Flight 5464 | . . . . . 437 471 159 586 1832 494 519 142 824 Fastest Speed 20 | 120 120 120 120 100 26 26 26 20 20 24 24 25 25 Average Speed 64 | 120 120 120 124 106 84 28 26 25 23 24 25 25 29 Slowest Speed 260 | 120 120 120 125 107 260 30 26 26 28 27 28 25 250 Overloaded Moves . | . . . . . . . . . . . . . . Propulsion Burnouts . | . . . . . . . . . . . . . . Robots Hopped 65 | . . . . . 3 . 2 8 21 2 . 1 28 Potential Cave-ins 5 | . . . . . . . . . . . . 5 . Cave-ins Triggered . | . . . . . . . . . . . . . . Exploration Rate (%) 30 | 2 34 11 92 17 27 60 20 16 48 52 18 5 26 Regions Visited 13 Branch Regions 6 Pre-discovered Areas 1 | . . 1 . . . . . . . . . . . Known Exits Taken 8 | . . . . . 1 1 1 1 1 1 1 1 . Unknown Exits Taken 5 | 1 1 1 1 1 . . . . . . . . . Scrap Searched 7 | . . . 4 . . 2 1 . . . . . . Spaces Dug 56 | . . . . . 1 . . 12 13 6 9 3 12 Terrain Destroyed 265 | . . . . 50 29 14 . 34 32 47 44 3 12 Melee 56 | . . . . . 1 . . 12 13 6 9 3 12 Projectile 36 | . . . . 22 14 . . . . . . . . AOE 172 | . . . . 28 13 14 . 22 19 41 35 . . Terrain Rammed . | . . . . . . . . . . . . . . Walls Destroyed . | . . . . . . . . . . . . . . Machines Disabled . | . . . . . . . . . . . . . . Actions | -11 -10 -10 -9 -6 -5 -5 -5 -4 -3 -3 -3 -2 -1 --------- Run | Yrd Mat Sub Scr Fac Fac Upp Upp Fac Res Qua Frg Res Acc Total 10430 | 13 143 98 2402 700 1359 478 186 665 2111 564 639 151 921 Wait 738 | . 9 10 . 127 133 . 28 43 232 49 49 4 54 Move 8958 | 10 123 88 2356 501 966 470 154 570 1792 489 518 138 783 Hop 53 | . . . . . 3 . 2 7 18 2 . 1 20 Pick Up 70 | . 4 . 24 7 21 1 . 1 7 5 . . . Fast Attach 69 | 1 . . . 1 33 1 . 7 11 1 . 2 12 Attach 49 | . . . . 10 20 2 1 . 7 2 3 2 2 Detach 36 | . . . . 2 16 1 . 2 5 1 3 . 6 Swap 27 | . . . 3 7 10 . . 4 1 1 . . 1 Drop 58 | . 2 . 19 1 23 . . 5 4 1 1 . 2 Fire 150 | 2 4 . . 40 89 3 . 3 3 2 3 . 1 Melee 134 | . . . . . 9 . 1 23 31 11 18 3 38 Ram 2 | . . . . . . . . . . . . . 2 Kick 11 | . 1 . . 4 6 . . . . . . . . Crush . | . . . . . . . . . . . . . . Escape Stasis 75 | . . . . . 30 . . . . . 44 1 . Rewire . | . . . . . . . . . . . . . . Trap . | . . . . . . . . . . . . . . Miscellaneous . | . . . . . . . . . . . . . . Route ------- -11/Scrapyard -10/Materials (discovered 2 exits: [*Min] / [*Sub]) -10/Subcaves -9/Scraptown (discovered 2 exits: *Fac x2) -6/Factory -5/Factory (discovered 6 exits: Fac x4 / *Upp x2) -5/Upper Caves -5/Upper Caves -4/Factory -3/Research (discovered 3 exits: Arm / *Qua x2) -3/Quarantine (discovered 2 exits: *Sec / *Frg) -3/Protoforge -2/Research -1/Access History --------- Turn | Location | Event 1 | -11/Scrapyard | Discovered new exit (range 2) 21 | -11/Scrapyard | Entered Materials 22 | -10/Materials | Met a group of wandering Federalists 78 | -10/Materials | Discovered new exit (range 15) 189 | -10/Materials | Discovered new exit (range 6) 195 | -10/Materials | Entered Subcaves 195 | -10/Subcaves | Accompanied by 2 allies 196 | -10/Subcaves | Continued accompanying wandering Federalists (3) 196 | -10/Subcaves | Approached by a straggling Scientist 238 | -10/Subcaves | Learned location of Zion (-6) 238 | -10/Subcaves | Met a Zionite searching for "candidates" 292 | -10/Subcaves | Lost 5 allies 304 | -10/Subcaves | Build established: Mutant 309 | -10/Subcaves | Scientist uncovered a shortcut to Scraptown 311 | -10/Subcaves | Entered Scraptown 440 | -9/Scraptown | Visited Cyclists 473 | -9/Scraptown | Visited The Evicted 500 | -9/Scraptown | Visited Red Mages 543 | -9/Scraptown | Visited Shadow of the Wyrm 567 | -9/Scraptown | Visited CPS Storage 978 | -9/Scraptown | Visited UFD Registry 978 | -9/Scraptown | Registered with UFD as "Monoripper" 1000 | -9/Scraptown | Visited SPCMW 1084 | -9/Scraptown | Discovered new exit (range 11) 1279 | -9/Scraptown | Visited Abandonware Association 1293 | -9/Scraptown | Learned abandonware demo "HACKBUD.EXE" 1295 | -9/Scraptown | Learned abandonware demo "OVRCLOCK.EXE" 1323 | -9/Scraptown | Visited Analyses Database 1559 | -9/Scraptown | Visited Research Penetration Think Tank 1588 | -9/Scraptown | Visited Scrapoid Pod Storage 1609 | -9/Scraptown | Visited Junk Repository 1668 | -9/Scraptown | Visited Modified Component R&D 1728 | -9/Scraptown | Discovered new exit (range 5) 1792 | -9/Scraptown | Found Scrap Suit 1835 | -9/Scraptown | Visited Junk Repository 1880 | -9/Scraptown | Visited Science Guys 1939 | -9/Scraptown | Visited Cartography Club 2057 | -9/Scraptown | Visited Cave Peace 2119 | -9/Scraptown | Entered Cyclist Reading Room 3278 | -9/Scraptown | Entered Factory 3278 | -6/Factory | Evolved 8 slots: Power x1, Propulsion x2, Utility x4, Weapon x1 3606 | -6/Factory | Build established: Scrapper 3793 | -6/Factory | Repaired Ovr. Railgun 4039 | -6/Factory | Discovered new exit (range 5) 4049 | -6/Factory | Entered another Factory area 4049 | -5/Factory | Evolved 2 slots: Utility x2 4604 | -5/Factory | Lost 5 parts (1p1n3u) 5091 | -5/Factory | Cargo convoy interrupted 5148 | -5/Factory | Released all parts (11) 5153 | -5/Factory | System corruption reached 10% 5159 | -5/Factory | Found Prototype Processor 5159 | -5/Factory | Identified Exp. Core Analyzer 5175 | -5/Factory | Found PL-3XN's Ring of Power 5187 | -5/Factory | Lost 11 parts (1p5n3u2w) 5211 | -5/Factory | Found Prototype Device 5211 | -5/Factory | Identified Exp. Transmission Jammer 5213 | -5/Factory | Found Exp. Core Analyzer 5298 | -5/Factory | Identified exit to Upper Caves 5314 | -5/Factory | Central database locked down 5342 | -5/Factory | Identified exit to Factory 5430 | -5/Factory | Entered Upper Caves 5545 | -5/Upper Caves | Identified exit to Upper Caves 5577 | -5/Upper Caves | Entered another Upper Caves area 5586 | -5/Upper Caves | Attracted the attention of an 0b10 checkpoint 5619 | -5/Upper Caves | Discovered exit to Factory (range 9) 5640 | -5/Upper Caves | Build established: Hacker-Ninja 5648 | -5/Upper Caves | Entered Factory 5648 | -4/Factory | Evolved 2 slots: Propulsion x2 5718 | -4/Factory | Loaded intel: 8 recycling unit locations 5903 | -4/Factory | Assembled infested ambush trap array 5903 | -4/Factory | Discovered new exit (range 7) 5921 | -4/Factory | Identified exit to Research 5922 | -4/Factory | Entered Research 5922 | -3/Research | Evolved 2 slots: Propulsion x1, Utility x1 5934 | -3/Research | Lost 3 parts (1n2u) 5948 | -3/Research | Identified exit to Armory 5948 | -3/Research | Identified exit to Quarantine 5963 | -3/Research | Build established: Hacker-Sprinter 6063 | -3/Research | Repaired Com. Particle Reactor 6066 | -3/Research | Spotted B-86 Titan 6084 | -3/Research | Central database locked down 6215 | -3/Research | Lost 6 parts (1p2n2u1w) 6344 | -3/Research | Loaded intel: 5 recycling unit locations 6367 | -3/Research | Found Fusion Bomb Launcher 6716 | -3/Research | Entered Quarantine 6836 | -3/Quarantine | Met incapacitated Sigix Warrior 6836 | -3/Quarantine | Lockdown squad dispatched 6840 | -3/Quarantine | Acquired the access code to the Sigix quarantine chamber 6841 | -3/Quarantine | Unlocked Sigix quarantine chamber 6843 | -3/Quarantine | Found Sigix Containment Pod 6846 | -3/Quarantine | Spotted Lightning 6868 | -3/Quarantine | Found Alien Artifact 6869 | -3/Quarantine | Identified Terrabomb 6869 | -3/Quarantine | Used Terrabomb 6875 | -3/Quarantine | Found Terrabomb 6880 | -3/Quarantine | Found Terrabomb 6911 | -3/Quarantine | Spotted Fortress 6929 | -3/Quarantine | Discovered new exit (range 6) 6929 | -3/Quarantine | Discovered new exit (range 7) 6930 | -3/Quarantine | Identified exit to Section 7 6931 | -3/Quarantine | Identified exit to Protoforge 6932 | -3/Quarantine | Entered Protoforge 6939 | -3/Protoforge | Spotted Hotshot 6940 | -3/Protoforge | Spotted B-86 Titan 6983 | -3/Protoforge | Spotted Hotshot 6988 | -3/Protoforge | Superfortress began startup sequence 6991 | -3/Protoforge | Spotted Hotshot 7211 | -3/Protoforge | Discovered new exit (range 3) 7212 | -3/Protoforge | Identified exit to Research 7213 | -3/Protoforge | Entered Research 7213 | -2/Research | Evolved 2 slots: Propulsion x1, Utility x1 7245 | -2/Research | Used Terrabomb 7254 | -2/Research | Found Prototype Processor 7254 | -2/Research | Identified Spectral Analyzer 7262 | -2/Research | Discovered new exit (range 6) 7264 | -2/Research | Identified exit to Access 7265 | -2/Research | Entered Access 7265 | -1/Access | Evolved 2 slots: Utility x2 7516 | -1/Access | Lost 4 parts (1p2n1u) 7615 | -1/Access | Spotted B-99 Colossus 7655 | -1/Access | Core integrity fell below 50% 7680 | -1/Access | Core integrity fell below 20% 7687 | -1/Access | Destroyed by X-87 Electro with Compact HERF Cannon Last Messages --------------- 07674_ Slug penetrates Wall. 07675_ Wall collapses. 07675_ Penetrated by Slug. 07676_ Adv. Remote Datajack destroyed. 07676_ Slug penetrates Wall. 07677_ Penetrated by Slug. 07679_ Dropped Med. Storage Unit. 07679_ Penetrated by Slug. 07680_ Acquired Xenon Bombardment Thruster. 07680_ Slug penetrates Wall. 07681_ /LU4S=NJZG%DNQ4ZZ=RP AVTZY2#, 07682_ Slug penetrates H-88 Terminator. 07682_ Slug penetrates Wall. 07683_ K-01 Serf collects debris. 07683_ Penetrated by Slug. 07686_ Slug penetrates Wall. 07687_ Slug penetrates K-01 Serf. 07687_ Penetrated by Slug. 07687_ Hacking Suite destroyed. 07687_ Xenon Bombardment Thruster destroyed. Map ----- +----------------------------------------------------+ | =%! * / !! #????????????????????????? | | ##+########### #????????????????????????? | | ## ?????????# = #????????????????????????? | | ## ?????????# #????????????????????????? | | # ## ????????# "T" #????????????????????????? | | # ## ????????# """ #????????????????????????? | | # ## ???????###+######????????????????????????? | | # ##] "?????????# #?#######?????????????????????? | | # ## ""????????# #?# ==#######???????????????? | | #? ????????# ### [%#=! #???????????????? | | ###? ?????????# *!=]![! #???????????????? | | ????#####????????# ###hhhk ]=%! #???????????????? | | ?????????????????# #?# !=#!= #???????????????? | | ?????????????????# #?## ##! #???????????????? | | ?????????????????# #??# ## #???????????????? | | ####?????????????# #??# p## #???????????????? | | #????????????? ??# ########???????????????? | | ?????? ??# k#??????????????????????? | | ???? ??# #??????????????????????? | | ????? ??# #??????????????????????? | | ????? ??# #??????????????????????? | | """"" """?????? ??# #??????????????????????? | | """"" ""??????? ??# #??????????????????????? | | """"" ""??????? ??# #??????????????????????? | | """??? ""??????? ??# #??????????????????????? | | """???????????????????# @#??????????????????????? | | ""????????????????????# #??????????????????????? | | ????????????????????# #??????????????????????? | | ????????????????????# #??????????????????????? | | ????????????????????# x#??????????????????????? | | "?????????????????????# #??????????????????????? | | ??????????????????????# #??????????????????????? | | ??????????????????????# #??????????????????????? | | ??????????????????????# x #??????????????????????? | | ??????????????????????# ???????????????????????? | | ??????????????????????# ???????????????????????? | | ??????????????????????# ???????????????????????? | | ??????????????????????# ???????????????????????? | | ?????????????????????? ???????????????????????? | | ?????????????????????? ???????????????????????? | | ??????????????????????? " ???????????????????????? | | ?????????????????????????????????????????????????? | | ?????????????????????????????????????????????????? | | ?????????????????????????????????????????????????? | | ?????????????????????????????????????????????????? | | ?????????????????????????????????????????????????? | | ?????????????????????????????????????????????????? | | ?????????????????????????????????????????????????? | | ?????????????????????????????????????????????????? | | ?????????????????????????????????????????????????? | +----------------------------------------------------+ Best States ------------- Heat Dissipation 52 Coolant Potential 120 Energy Generation 39 Energy Capacity 1050 Matter Stores 400 Matter Capacity 400 Sight Range 22 Robot Scan Range 16 Terrain Scan Range 20 Terrain Scan Density 10 ECM Strength 2 Jamming Range 22 Armor Coverage 450 Phase Shifting 5 Evasion (%) 73 Targeting Accuracy 11 Target Analysis 6 Core Analysis 12 Recoil Reduction 6 Offensive Hacking 34 Defensive Hacking 12 Item Schematics ----------------- None Robot Schematics ------------------ None Fabricated ------------ Nothing Repaired ---------- Ovr. Railgun | 70% | -6/Factory Com. Particle Reactor | 5% | -3/Research Studied --------- Cesium-ion Thruster | -5/Factory | Hacked Q-thruster | -3/Research | Hacked Impulse Thruster Array | -3/Quarantine | Hacked Mic. Antimatter Reactor | -1/Access | Hacked Alien Tech Used ----------------- Terrabomb Achievements -------------- Bob, First Of His Name Deductive Reasoning Ew, Corruption Fitting Room Ghost 'Em Insider Info Jackpot Junior Dev Live, Flee, And Rebuild Nice Directions, Buddy Nope Strength In Numbers Super-what Now? Challenges ------------ None Game ------ Seed AmuletTractorTelecube Manual? 0 Play Time 03:22:17 Cumulative 76.4 hours Start 2026.03.18 @ 10:14:20 End 2026.03.18 @ 13:47:16 Sessions 1 Manual Loads 0 Difficulty Rogue Special Mode None Game No. 67 Rogue 22 Adventurer 45 Explorer 0 Win Type - Total 3 Types 2/0/0/1/0/0/0/0/0/0 Lore% 49 Gallery% 46 Achievement% 31 Wizard Run 0 Options --------- Layout 0 ASCII 0 Keyboard 1 Movement Numpad Keybinds 0 Fullscreen 1 Font 24/Smallcaps Map View 76x50 Zoom Use 0% Tactical HUD 1 Map Filters NONE Filters NONE Steam 1 RUN: 80aa447d-5ead-4149-9f3d-c15a41ca8412